fUSD/lending_fUSD_20240905
["ID","MTS","AMOUNT","RATE_DAILY","PERIOD"]
[337220247,1725504643936,-688.18,0.00014999,2]
[337220248,1725504643945,-688.27885116,0.00014999,2]
[337220249,1725504643954,-513.4,0.00014999,2]
[337220250,1725504643965,-513.4,0.00014999,2]
[337220251,1725504643975,-513.4,0.00014999,2]
[337220252,1725504643984,-513.4,0.00014999,2]
[337220253,1725504643994,-513.4,0.00014999,2]
[337220254,1725504644003,-513.4,0.00014999,2]
[337220255,1725504644013,-513.4,0.00014999,2]
[337220256,1725504644022,-513.4,0.00014999,2]
[337220257,1725504644031,-513.6351887,0.00014999,2]
[337220258,1725504644041,-1651.21,0.00014999,2]
[337220259,1725504644052,-1651.21,0.00014999,2]
[337220260,1725504644062,-1651.21,0.00014999,2]
[337220261,1725504644071,-1651.21,0.00014999,2]
[337220262,1725504644081,-1651.21,0.00014999,2]
[337220263,1725504644246,-1651.21,0.00014999,2]
[337220264,1725504644277,-1651.27595274,0.00014999,2]
[337220265,1725504644286,-515.53897252,0.00014999,2]
[337220266,1725504644295,-500.0,0.00014999,2]
[337220267,1725504644304,-500.0,0.00014999,2]
[337220268,1725504644313,-500.0,0.00014999,2]
[337220269,1725504644322,-488.53087586,0.00014999,2]
[337220270,1725504644331,-574.4271785,0.00014999,2]
[337220271,1725504644340,-500.0,0.00014999,2]
[337220272,1725504644349,-500.0,0.00014999,2]
[337220273,1725504644359,-500.0,0.00014999,2]
[337220274,1725504644367,-500.0,0.00014999,2]
[337220275,1725504644377,-308.02243689,0.00014999,2]
[337220276,1725504644386,-1629.09,0.00014999,2]
[337220277,1725504644395,-1629.09,0.00014999,2]
[337220278,1725504644404,-1629.09,0.00014999,2]
[337220279,1725504644413,-1629.09,0.00014999,2]
[337220280,1725504644422,-1629.09,0.00014999,2]
[337220281,1725504644431,-1629.09,0.00014999,2]
[337220282,1725504644441,-1629.2919559,0.00014999,2]
[337220283,1725504644450,-500.0,0.00014999,2]
[337220284,1725504644460,-500.0,0.00014999,2]
[337220285,1725504644470,-422.72,0.00014999,2]
[337220286,1725504644479,-1019.26,0.00014999,2]
[337220287,1725504644488,-1019.26,0.00014999,2]
[337220288,1725504644497,-1019.26,0.00014999,2]
[337220289,1725504644510,-1019.26,0.00014999,2]
[337220290,1725504644519,-1019.26,0.00014999,2]
[337220291,1725504644529,-1019.26,0.00014999,2]
[337220292,1725504644538,-1019.26,0.00014999,2]
[337220293,1725504644547,-1019.26,0.00014999,2]
[337220294,1725504644557,-1019.26753081,0.00014999,2]
[337220295,1725504644566,-623.61,0.00014999,2]
[337220296,1725504644578,-623.61,0.00014999,2]
[337220297,1725504644587,-623.61,0.00014999,2]
[337220298,1725504644597,-623.61,0.00014999,2]
[337220299,1725504644607,-623.61,0.00014999,2]
[337220300,1725504644617,-623.61,0.00014999,2]
[337220301,1725504644626,-623.61,0.00014999,2]
[337220302,1725504644635,-623.61,0.00014999,2]
[337220303,1725504644645,-623.72064237,0.00014999,2]
[337220304,1725504644654,-500.0,0.00014999,2]
[337220305,1725504644664,-500.0,0.00014999,2]
[337220306,1725504644673,-500.0,0.00014999,2]
[337220307,1725504644683,-500.0,0.00014999,2]
[337220308,1725504644692,-500.0,0.00014999,2]
[337220309,1725504644701,-248.90013484,0.00014999,2]
[337220310,1725504644711,-686.71,0.00014999,2]
[337220311,1725504644721,-686.71,0.00014999,2]
[337220312,1725504644731,-686.71,0.00014999,2]
[337220313,1725504644740,-686.71,0.00014999,2]
[337220314,1725504644750,-686.71,0.00014999,2]
[337220315,1725504644760,-686.8841968,0.00014999,2]
[337220316,1725504644770,-1044.58,0.00014999,2]
[337220317,1725504644779,-1044.58,0.00014999,2]
[337220318,1725504644789,-1044.58,0.00014999,2]
[337220319,1725504644798,-1044.58,0.00014999,2]
[337220320,1725504644808,-1044.58,0.00014999,2]
[337220321,1725504644818,-1044.58,0.00014999,2]
[337220322,1725504644827,-905.2,0.00014999,2]
[337220323,1725504644836,-1044.58,0.00014999,2]
[337220324,1725504644846,-905.2,0.00014999,2]
[337220325,1725504644855,-1044.58,0.00014999,2]
[337220326,1725504644864,-905.2,0.00014999,2]
[337220327,1725504644875,-1044.79443667,0.00014999,2]
[337220328,1725504644884,-905.2,0.00014999,2]
[337220329,1725504644895,-905.2,0.00014999,2]
[337220330,1725504644904,-905.3609867,0.00014999,2]
[337220331,1725504644913,-370.33908265,0.00014999,2]
[337220332,1725504644923,-204.20717472,0.00014999,2]
[337220333,1725504644932,-500.0,0.00014999,2]
[337220334,1725504644943,-500.0,0.00014999,2]
[337220335,1725504644952,-500.0,0.00014999,2]
[337220336,1725504644964,-530.34717361,0.00014999,2]
[337220337,1725504644973,-2099.49,0.00014999,2]
[337220338,1725504644983,-2099.49,0.00014999,2]
[337220339,1725504644993,-2099.49,0.00014999,2]
[337220340,1725504645002,-2099.49,0.00014999,2]
[337220341,1725504645013,-2099.49,0.00014999,2]
[337220342,1725504645022,-2099.58445139,0.00014999,2]
[337220343,1725504645031,-500.0,0.00014999,2]
[337220344,1725504645040,-500.0,0.00014999,2]
[337220345,1725504645051,-575.18,0.00014999,2]
[337220346,1725504645060,-575.18,0.00014999,2]
[337220347,1725504645069,-575.18,0.00014999,2]
[337220348,1725504645080,-575.18,0.00014999,2]
[337220349,1725504645094,-575.18,0.00014999,2]
[337220350,1725504645105,-575.18,0.00014999,2]
[337220351,1725504645115,-575.18166386,0.00014999,2]
[337220352,1725504645125,-500.0,0.00014999,2]
[337220353,1725504645136,-500.0,0.00014999,2]
[337220354,1725504645146,-500.0,0.00014999,2]
[337220355,1725504645157,-1024.2,0.00014999,2]
[337220356,1725504645168,-1024.2,0.00014999,2]
[337220357,1725504645178,-1024.2,0.00014999,2]
[337220358,1725504645188,-1024.2,0.00014999,2]
[337220359,1725504645197,-1024.2,0.00014999,2]
[337220360,1725504645208,-1024.2,0.00014999,2]
[337220361,1725504645219,-1024.21586481,0.00014999,2]
[337220362,1725504645229,-1493.11,0.00014999,2]
[337220363,1725504645240,-500.0,0.00014999,2]
[337220364,1725504645249,-1493.11,0.00014999,2]
[337220365,1725504645260,-500.0,0.00014999,2]
[337220366,1725504645269,-1493.11,0.00014999,2]
[337220367,1725504645278,-500.0,0.00014999,2]
[337220368,1725504645289,-1493.11,0.00014999,2]
[337220369,1725504645300,-1493.11,0.00014999,2]
[337220370,1725504645309,-1493.11,0.00014999,2]
[337220371,1725504645318,-1493.11,0.00014999,2]
[337220372,1725504645328,-1493.11,0.00014999,2]
[337220373,1725504645339,-1493.13276466,0.00014999,2]
[337220374,1725504645349,-500.0,0.00014999,2]
[337220375,1725504645362,-500.0,0.00014999,2]
[337220376,1725504645372,-500.0,0.00014999,2]
[337220377,1725504645382,-621.25,0.00014999,2]
[337220378,1725504645392,-621.25,0.00014999,2]
[337220379,1725504645401,-621.25,0.00014999,2]
[337220380,1725504645410,-621.25,0.00014999,2]
[337220381,1725504645420,-621.25,0.00014999,2]
[337220382,1725504645431,-621.25,0.00014999,2]
[337220383,1725504645441,-621.25,0.00014999,2]
[337220384,1725504645451,-621.25,0.00014999,2]
[337220385,1725504645462,-621.28049146,0.00014999,2]
[337220386,1725504645473,-500.0,0.00014999,2]
[337220387,1725504645483,-513.84029478,0.00014999,2]
[337220388,1725504645494,-500.0,0.00014999,2]
[337220389,1725504645506,-500.0,0.00014999,2]
[337220390,1725504645516,-500.0,0.00014999,2]
[337220391,1725504645526,-797.12,0.00014999,2]
[337220392,1725504645536,-797.12,0.00014999,2]
[337220393,1725504645547,-797.12,0.00014999,2]
[337220394,1725504645557,-797.12,0.00014999,2]
[337220395,1725504645567,-797.12,0.00014999,2]
[337220396,1725504645576,-797.12,0.00014999,2]
[337220397,1725504645585,-797.3049071,0.00014999,2]
[337220398,1725504645597,-561.36,0.00014999,2]
[337220399,1725504645606,-561.36,0.00014999,2]
[337220400,1725504645617,-561.36,0.00014999,2]
[337220401,1725504645627,-561.36,0.00014999,2]
[337220402,1725504645637,-561.36,0.00014999,2]
[337220403,1725504645646,-561.36,0.00014999,2]
[337220404,1725504645655,-561.38958519,0.00014999,2]
[337220405,1725504645664,-500.0,0.00014999,2]
[337220406,1725504645674,-313.24971926,0.00014999,2]
[337220407,1725504645683,-500.0,0.00014999,2]
[337220408,1725504645693,-500.0,0.00014999,2]
[337220409,1725504645703,-440.01003747,0.00014999,2]
[337220410,1725504645712,-838.99,0.00014999,2]
[337220411,1725504645722,-838.99,0.00014999,2]
[337220412,1725504645731,-838.99,0.00014999,2]
[337220415,1725504645740,-838.99,0.00014999,2]
[337220418,1725504645749,-838.99,0.00014999,2]
[337220420,1725504645760,-838.99,0.00014999,2]
[337220422,1725504645769,-839.0385615,0.00014999,2]
[337220424,1725504645778,-232.20570939,0.00014999,2]
[337220426,1725504645788,-818.93,0.00014999,2]
[337220428,1725504645797,-818.93,0.00014999,2]
[337220430,1725504645806,-818.93,0.00014999,2]
[337220432,1725504645816,-818.93,0.00014999,2]
[337220434,1725504645825,-818.93,0.00014999,2]
[337220436,1725504645834,-818.93,0.00014999,2]
[337220438,1725504645843,-819.12422962,0.00014999,2]
[337220440,1725504645852,-664.81,0.00014999,2]
[337220442,1725504645862,-664.81,0.00014999,2]
[337220444,1725504645871,-664.81,0.00014999,2]
[337220446,1725504645880,-664.81,0.00014999,2]
[337220448,1725504645889,-664.81,0.00014999,2]
[337220450,1725504645899,-664.81,0.00014999,2]
[337220452,1725504645908,-664.88814021,0.00014999,2]
[337220454,1725504645917,-500.0,0.00014999,2]
[337220456,1725504645927,-227.17053209,0.00014999,2]
[337220458,1725504645936,-1145.4,0.00014999,2]
[337220460,1725504645945,-1145.4,0.00014999,2]
[337220461,1725504645954,-1145.4,0.00014999,2]
[337220462,1725504645963,-1145.4,0.00014999,2]
[337220463,1725504645972,-1145.4,0.00014999,2]
[337220464,1725504645982,-1145.4,0.00014999,2]
[337220465,1725504645991,-1145.53580684,0.00014999,2]
[337220466,1725504646000,-158.222875,0.00014999,3]
[337220467,1725504646011,-729.38,0.00014999,2]
[337220468,1725504646020,-729.38,0.00014999,2]
[337220469,1725504646029,-729.38,0.00014999,2]
[337220470,1725504646038,-729.38,0.00014999,2]
[337220471,1725504646047,-729.38,0.00014999,2]
[337220472,1725504646056,-729.38,0.00014999,2]
[337220473,1725504646066,-729.38,0.00014999,2]
[337220474,1725504646076,-729.38,0.00014999,2]
[337220475,1725504646086,-729.38,0.00014999,2]
[337220476,1725504646097,-729.38,0.00014999,2]
[337220477,1725504646106,-729.38,0.00014999,2]
[337220478,1725504646115,-729.38,0.00014999,2]
[337220479,1725504646125,-729.38,0.00014999,2]
[337220480,1725504646134,-832.0,0.00014999,2]
[337220481,1725504646144,-729.38,0.00014999,2]
[337220482,1725504646153,-729.38,0.00014999,2]
[337220483,1725504646163,-729.38,0.00014999,2]
[337220484,1725504646173,-729.38,0.00014999,2]
[337220485,1725504646182,-729.42960102,0.00014999,2]
[337220486,1725504646191,-381950.66646201,0.00015,2]
[337220487,1725504646201,-243218.0,0.00015,2]
[337220488,1725504646210,-1067845.25446301,0.00015,2]
[337220489,1725504646392,-67280.53398539,0.00015,2]
[337220490,1725504646414,-189.41868554,0.000149,2]
[337220491,1725504646424,-678.01131446,0.00015,2]
[337220492,1725504646435,-31971.56757775,0.00015,2]
[337220493,1725504646446,-429.31947091,0.00015,2]
[337220494,1725504646457,-1979.73371414,0.00015,2]
[337220495,1725504646468,-360.42433623,0.00015,2]
[337220496,1725504646487,-1243.77637858,0.00015,2]
[337220497,1725504646924,-10034.08847094,0.00015,2]
[337220498,1725504646935,-289.10000002,0.00015,2]
[337220499,1725504646947,-1321.69127506,0.00015,2]
[337220500,1725504646974,-387.7317709,0.00015,2]
[337220501,1725504646985,-321.8,0.00015,2]
[337220503,1725504802476,158.11,0.00010959,2]
[337220504,1725504869360,692.66,0.00011916,2]
[337220507,1725505239620,550.0,0.00011,2]
[337220508,1725505354587,154.53,0.00010959,2]
[337220509,1725505394057,725.07,0.00011737,2]
[337220510,1725505411131,3901.39,0.00025,60]
[337220525,1725505831975,-600.0,0.00013,2]
[337220526,1725505831985,-893.121166,0.00013412,2]
[337220527,1725505831994,-225.5177,0.0001348,2]
[337220528,1725505832004,-250.0,0.00013616,2]
[337220529,1725505832014,-1000.0,0.00013639,2]
[337220530,1725505832024,-500.0,0.0001364,2]
[337220531,1725505832033,-250.0,0.00013649,2]
[337220532,1725505832043,-250.0,0.00013649,2]
[337220533,1725505832052,-280.06,0.00013658,2]
[337220534,1725505832061,-168.69,0.00013658,2]
[337220535,1725505832070,-1341.15500489,0.00013663,2]
[337220536,1725505832082,-327.85685687,0.00013663,2]
[337220537,1725505832093,-1926.93036806,0.00013663,2]
[337220538,1725505832104,-1474.46617901,0.00013663,2]
[337220539,1725505832115,-2637.74911535,0.00013663,2]
[337220540,1725505832126,-341.48088377,0.00013663,2]
[337220542,1725505832202,-2481.20419989,0.00013663,2]
[337220544,1725505832213,-503.88900716,0.00013663,2]
[337220545,1725505832224,-5643.398385,0.00013663,2]
[337220547,1725505832234,-213.05,0.00013666,2]
[337220549,1725505832244,-159.9,0.00013699,2]
[337220551,1725505832253,-288.63,0.00013699,2]
[337220553,1725505832262,-210.98,0.00013699,2]
[337220555,1725505832271,-165.14,0.00013699,2]
[337220557,1725505832280,-500.0,0.000137,2]
[337220558,1725505832288,-500.0,0.000137,2]
[337220559,1725505832297,-500.0,0.000137,2]
[337220560,1725505832307,-172.57,0.00013723,2]
[337220561,1725505832315,-499.99,0.00013754,2]
[337220562,1725505832324,-694.8,0.00013754,2]
[337220563,1725505832333,-167.09,0.00013789,2]
[337220564,1725505832342,-169.05,0.00013789,2]
[337220565,1725505832351,-179.49620878,0.000139,2]
[337220566,1725505832361,-216.72,0.00013993,2]
[337220567,1725505832370,-725.07,0.00014001,2]
[337220568,1725505832379,-364.27,0.00014192,2]
[337220569,1725505832388,-740.03,0.00014192,2]
[337220570,1725505832397,-357.37,0.00014192,2]
[337220571,1725505832411,-357.37,0.00014192,2]
[337220572,1725505832420,-1000.0,0.00014248,2]
[337220573,1725505832429,-502.26897955,0.00014248,2]
[337220574,1725505832439,-215.0,0.0001429,2]
[337220575,1725505832449,-215.0,0.0001435,2]
[337220576,1725505832459,-215.0,0.0001442,2]
[337220577,1725505832468,-215.0,0.0001448,2]
[337220578,1725505832478,-150.0,0.0001448,2]
[337220579,1725505832487,-215.0,0.0001455,2]
[337220580,1725505832497,-215.0,0.0001461,2]
[337220581,1725505832506,-215.0,0.0001468,2]
[337220582,1725505832515,-1500.0,0.00014726,2]
[337220583,1725505832524,-150.0,0.00014736,2]
[337220584,1725505832533,-1500.0,0.00014738,2]
[337220585,1725505832542,-1500.0,0.00014739,2]
[337220586,1725505832551,-215.0,0.0001474,2]
[337220587,1725505832560,-150.0,0.00014748,2]
[337220588,1725505832570,-1500.0,0.0001475,2]
[337220589,1725505832579,-1500.0,0.0001476,2]
[337220590,1725505832588,-150.0,0.00014761,2]
[337220591,1725505832597,-150.0,0.00014762,2]
[337220592,1725505832606,-150.0,0.00014769,2]
[337220593,1725505832615,-150.0,0.00014773,2]
[337220594,1725505832625,-297.7529,0.00014795,2]
[337220595,1725505832634,-163.926,0.000148,2]
[337220596,1725505832643,-2953.3969,0.000148,2]
[337220597,1725505832652,-150.0,0.00014807,2]
[337220598,1725505832661,-215.0,0.0001481,2]
[337220599,1725505832670,-150.0,0.00014812,2]
[337220600,1725505832680,-1500.0,0.00014814,2]
[337220601,1725505832689,-1500.0,0.00014821,2]
[337220602,1725505832698,-150.0,0.00014822,2]
[337220603,1725505832710,-150.0,0.00014826,2]
[337220604,1725505832720,-150.0,0.00014831,2]
[337220605,1725505832729,-150.0,0.00014833,2]
[337220606,1725505832739,-150.0,0.0001484,2]
[337220607,1725505832748,-1500.0,0.00014845,2]
[337220608,1725505832758,-150.0,0.00014856,2]
[337220609,1725505832771,-1500.0,0.00014859,2]
[337220610,1725505832782,-150.0,0.00014863,2]
[337220611,1725505832792,-150.0,0.00014864,2]
[337220612,1725505832803,-215.0,0.0001487,2]
[337220613,1725505832814,-154.38739058,0.00014879,2]
[337220614,1725505832824,-36597.47104671,0.0001489,2]
[337220615,1725505832835,-36597.47104663,0.00014891,2]
[337220616,1725505832846,-36597.47104663,0.00014892,2]
[337220617,1725505832856,-36597.47104663,0.00014893,2]
[337220618,1725505832867,-36597.47104663,0.00014894,2]
[337220619,1725505832878,-36597.47104663,0.00014896,2]
[337220620,1725505832888,-500.0,0.00014896,2]
[337220621,1725505832898,-500.0,0.00014896,2]
[337220622,1725505832908,-500.0,0.00014896,2]
[337220623,1725505832918,-500.0,0.00014896,2]
[337220624,1725505832928,-500.0,0.00014896,2]
[337220625,1725505832937,-467.96733929,0.00014896,2]
[337220626,1725505832949,-500.0,0.00014896,2]
[337220627,1725505832963,-500.0,0.00014896,2]
[337220628,1725505832973,-409.81641172,0.00014896,2]
[337220629,1725505832984,-36597.47104663,0.00014897,2]
[337220630,1725505832994,-36597.47104663,0.00014898,2]
[337220631,1725505833004,-36597.47104663,0.00014899,2]
[337220632,1725505833015,-188.8060097,0.000149,2]
[337220633,1725505833026,-177.388712,0.000149,2]
[337220634,1725505833037,-641.58401024,0.000149,2]
[337220635,1725505833048,-714.58688225,0.000149,2]
[337220636,1725505833060,-36597.47104663,0.000149,2]
[337220637,1725505833071,-1499.89057414,0.000149,2]
[337220638,1725505833082,-166.7035891,0.000149,2]
[337220639,1725505833094,-6485.96738369,0.000149,2]
[337220640,1725505833105,-169.23349936,0.00014904,2]
[337220641,1725505833116,-1500.0,0.00014911,2]
[337220642,1725505833128,-500.0,0.00014925,2]
[337220643,1725505833140,-500.0,0.00014925,2]
[337220644,1725505833151,-500.0,0.00014925,2]
[337220645,1725505833162,-500.0,0.00014925,2]
[337220646,1725505833173,-500.0,0.00014925,2]
[337220647,1725505833184,-387.4345,0.00014925,2]
[337220648,1725505833196,-500.0,0.00014925,2]
[337220649,1725505833209,-500.0,0.00014925,2]
[337220650,1725505833220,-500.0,0.00014925,2]
[337220651,1725505833231,-500.0,0.00014925,2]
[337220652,1725505833242,-500.0,0.00014925,2]
[337220653,1725505833253,-500.0,0.00014925,2]
[337220654,1725505833263,-500.0,0.00014925,2]
[337220655,1725505833274,-500.0,0.00014925,2]
[337220656,1725505833285,-510.3469,0.00014925,2]
[337220657,1725505833296,-204.0,0.0001493,2]
[337220658,1725505833308,-150.0,0.0001493,2]
[337220659,1725505833319,-215.0,0.0001493,2]
[337220660,1725505833330,-153.63575951,0.00014938,2]
[337220661,1725505833341,-1500.0,0.00014941,2]
[337220662,1725505833351,-150.0,0.00014953,2]
[337220663,1725505833362,-804.78915601,0.00014955,2]
[337220664,1725505833373,-150.0,0.00014964,2]
[337220665,1725505833383,-156.72349957,0.0001497,2]
[337220666,1725505833394,-400.51570421,0.00014973,2]
[337220667,1725505833408,-150.0,0.00014976,2]
[337220668,1725505833419,-150.0,0.00014982,2]
[337220669,1725505833430,-1500.0,0.00014983,2]
[337220670,1725505833440,-3436.59322365,0.00014988,2]
[337220671,1725505833455,-150.64,0.00014989,2]
[337220672,1725505833466,-150.0,0.00014989,2]
[337220673,1725505833476,-150.0,0.00014989,2]
[337220674,1725505833485,-150.64,0.0001499,2]
[337220675,1725505833495,-204.0,0.0001499,2]
[337220676,1725505833505,-215.0,0.0001499,2]
[337220677,1725505833515,-150.64,0.0001499,2]
[337220678,1725505833525,-150.64,0.0001499,2]
[337220679,1725505833536,-150.64,0.0001499,2]
[337220680,1725505833547,-150.64,0.0001499,2]
[337220681,1725505833556,-150.64,0.0001499,2]
[337220682,1725505833566,-150.64,0.0001499,2]
[337220683,1725505833577,-150.64,0.0001499,2]
[337220684,1725505833588,-150.64,0.0001499,2]
[337220685,1725505833598,-150.64,0.0001499,2]
[337220686,1725505833609,-150.64,0.0001499,2]
[337220687,1725505833620,-150.64,0.0001499,2]
[337220688,1725505833630,-150.64,0.0001499,2]
[337220689,1725505833640,-150.64,0.0001499,2]
[337220690,1725505833651,-150.64,0.0001499,2]
[337220691,1725505833662,-150.64,0.0001499,2]
[337220692,1725505833672,-150.64,0.0001499,2]
[337220693,1725505833683,-150.64,0.0001499,2]
[337220694,1725505833695,-150.64,0.0001499,2]
[337220695,1725505833708,-150.64,0.0001499,2]
[337220696,1725505833722,-150.64,0.0001499,2]
[337220697,1725505833734,-150.64,0.0001499,2]
[337220698,1725505833746,-150.64,0.0001499,2]
[337220699,1725505833757,-150.64,0.0001499,2]
[337220700,1725505833769,-150.64,0.0001499,2]
[337220701,1725505833780,-150.64,0.0001499,2]
[337220702,1725505833791,-150.64,0.0001499,2]
[337220703,1725505833806,-150.64,0.0001499,2]
[337220704,1725505833818,-150.64,0.0001499,2]
[337220705,1725505833830,-150.64,0.0001499,2]
[337220706,1725505833840,-150.64,0.0001499,2]
[337220707,1725505833851,-150.64,0.0001499,2]
[337220708,1725505833863,-150.64,0.0001499,2]
[337220709,1725505833873,-150.64,0.0001499,2]
[337220710,1725505833884,-150.64,0.0001499,2]
[337220711,1725505833895,-150.64,0.0001499,2]
[337220712,1725505833906,-1500.0,0.00014995,2]
[337220713,1725505833918,-150.0,0.00014996,2]
[337220714,1725505833928,-676.22537198,0.00014999,2]
[337220715,1725505833939,-36786.6803016,0.00014999,2]
[337220716,1725505833955,-555.90330277,0.00014999,2]
[337220717,1725505833968,-201630.4713057,0.00014999,2]
[337220718,1725505833980,-150.0,0.00014999,2]
[337220719,1725505833992,-587.0,0.00015,2]
[337220720,1725505834004,-4225.95632735,0.00015,2]
[337220721,1725505834019,-751.39001507,0.00015,2]
[337220722,1725505834033,-976.47953325,0.00015,2]
[337220723,1725505834049,-298.3,0.00015,2]
[337220724,1725505834064,-770.00685993,0.00015,2]
[337220725,1725505834077,-6558.09753364,0.00015,2]
[337220726,1725505834091,-13589.60434667,0.00015,2]
[337220727,1725505834104,-1865.69249295,0.00015,2]
[337220730,1725505838037,-9247.40127066,0.00015,2]
[337220732,1725505838049,-1919.49092263,0.00015,2]
[337220733,1725505838061,-1079.19611686,0.00015,2]
[337220734,1725505838073,-1698.03970922,0.00015,2]
[337220735,1725505838414,-1107.2408442,0.00015,2]
[337220736,1725505838426,-19177.27197511,0.00015,2]
[337220737,1725505838438,-1002.00817452,0.00015,2]
[337220738,1725505838451,-2388.94041669,0.00015,2]
[337220739,1725505838467,-370.8995141,0.00015,2]
[337220740,1725505838479,-1070.74851317,0.00015,2]
[337220741,1725505838565,-1632.9959002,0.00015,2]
[337220742,1725505838578,-14005.94135658,0.00015,2]
[337220743,1725505838589,-965.47893929,0.00015,2]
[337220744,1725505838601,-57499.99999999,0.00015,2]
[337220791,1725505840032,-5198.16634652,0.00015,2]
[337220793,1725505840045,-760.11591725,0.00015,2]
[337220794,1725505840056,-401.71205352,0.00015,2]
[337220795,1725505840069,-3333.99104239,0.00015,2]
[337220796,1725505840249,-1598.09579299,0.00015,2]
[337220797,1725505840261,-89550.17780423,0.00015,2]
[337220798,1725505840271,-625.0,0.00015,2]
[337220799,1725505840281,-139772.90972294,0.00015,2]
[337220800,1725505840442,-62165.98744174,0.00015,2]
[337220801,1725505840455,-411213.09194807,0.00015,2]
[337220806,1725505843626,-500.0,0.000137,2]
[337220807,1725505843636,-1000.0,0.00014248,2]
[337220808,1725505843645,-150.0,0.00014735,2]
[337220809,1725505843656,-150.0,0.00014776,2]
[337220810,1725505843666,-150.0,0.00014786,2]
[337220811,1725505843675,-150.0,0.00014838,2]
[337220812,1725505843685,-150.0,0.00014868,2]
[337220813,1725505843695,-150.0,0.00014877,2]
[337220814,1725505843706,-164.39176604,0.00014886,2]
[337220815,1725505843719,-150.0,0.00014891,2]
[337220816,1725505843728,-150.0,0.00014899,2]
[337220817,1725505843738,-1315.05733156,0.000149,2]
[337220818,1725505843748,-150.0,0.00014918,2]
[337220819,1725505843758,-150.0,0.00014952,2]
[337220820,1725505843768,-150.0,0.00014964,2]
[337220821,1725505843778,-12266.8095369,0.00015,2]
[337220822,1725505843790,-4342.0000002,0.00015,2]
[337220823,1725505843802,-12013.5,0.00015,2]
[337220824,1725505843814,-24859.91229684,0.00015,2]
[337220825,1725505843825,-71783.70110887,0.00015,2]
[337220831,1725505853653,-3458557.70163506,0.00015,2]
[337220832,1725505853814,-11503.16852525,0.00015,2]
[337220833,1725505854510,-348462.07339354,0.00015,2]
[337220834,1725505854521,-3313.60911296,0.00015,2]
[337220835,1725505854533,-526.02,0.00015,2]
[337220836,1725505854562,-607.86930902,0.000149,2]
[337220837,1725505854572,-327.06643225,0.000149,2]
[337220838,1725505854581,-215.06425873,0.00015,2]
[337220839,1725505854593,-350.93574127,0.00015,2]
[337220840,1725505854826,-2522.6968509,0.00015,2]
[337220841,1725505854845,-1447.9806591,0.00015,2]
[337220842,1725505854856,-1218.19999999,0.00015,2]
[337220843,1725505855392,-548.7489885,0.00015,2]
[337220844,1725505855407,-329.50178127,0.00015,2]
[337220845,1725505855420,-1771.28239606,0.00015,2]
[337220846,1725505855431,-35179.26100874,0.00015,2]
[337220847,1725505855443,-1543.58513441,0.00015,2]
[337220848,1725505855458,-2900.97102806,0.00015,2]
[337220849,1725505872601,189.95,0.00010959,2]
[337220861,1725506009210,508.851482,0.00026345,120]
[337220862,1725506011641,202.133293,0.00026345,120]
[337220881,1725506103187,1386.32881438,0.00025,60]
[337220905,1725506214184,706.01,0.00011954,2]
[337220907,1725506354417,384.69,0.00010959,2]
[337220908,1725506395257,-1278.978,0.000129,2]